Cogmind - Beta 9.4 @@@ ROGUE MODE // 2020.01.10 @ 00:05:25 Player: alice_fexa Result: Destroyed by D-53 Grenadier with Mini Grenade Launcher Performance ------------- Evolutions (1) 500 Regions Visited (4) 800 Robots Destroyed (71) 355 Value Destroyed (1413) 1413 Prototype IDs (4) 80 Alien Tech Used (0) 0 Bonus (195) 195 TOTAL SCORE: 3343 Bonus ------- High Alert Combat Kills 38 Follower Combat Kills 157 Cogmind --------- Core Integrity 0/400 Matter 100/300 Energy 100/100 System Corruption 0% Temperature Cool (0) Movement Core (700) Ox13 Location -9/Mines Parts ------- > --- POWER (1) -------- (None) > --- PROPULSION (3) --- Wheel > --- UTILITY (3) ------ Large Storage Unit Large Storage Unit Hardened Light Armor Plating > --- WEAPON (2) ------- Improved Assault Rifle > --- INVENTORY (16) --- Improved Ion Engine Deuterium Engine Improved Treads Armored Treads Armored Treads Armored Treads Wheel Improved Heat Sink Improved Signal Interpreter Hacking Suite Makeshift System Shield Heavy Assault Rifle Improved Assault Rifle Mini Grenade Launcher Mini Grenade Launcher Peak State ------------ > --- POWER ------------ Deuterium Engine > --- PROPULSION ------- Armored Treads Wheel Compact Wheel > --- UTILITY ---------- Improved Heat Sink Large Storage Unit Large Storage Unit > --- WEAPON ----------- Advanced Beam Cannon Improved Assault Rifle > --- INVENTORY -------- Improved Ion Engine Deuterium Engine Improved Treads Armored Treads Armored Treads Armored Treads Improved Signal Interpreter Hardened Light Armor Plating Hacking Suite Makeshift System Shield Beam Rifle Advanced Beam Cannon Heavy Assault Rifle Improved Assault Rifle Grenade Launcher Mini Grenade Launcher [Rating: 23] Favorites ----------- Power Light Nuclear Core Engine Light Ion Engine Power Core Light Nuclear Core Propulsion Compact Wheel Treads Armored Treads Wheel Compact Wheel Utility Large Storage Unit Device Improved Heat Sink Storage Large Storage Unit Protection Light Armor Plating Weapon Assault Rifle Energy Gun Medium Laser Energy Cannon Advanced Beam Cannon Ballistic Gun Assault Rifle Launcher Mini Grenade Launcher Build | -11 -10 -10 -9 -9 ------- Run | Scr Mat Min Mat Min Slots Evolved 2 | . . . 2 . Power . | . . . . . Propulsion 1 | . . . 1 . Utility 1 | . . . 1 . Weapon . | . . . . . Parts Attached 54 | 7 12 1 30 4 Power 7 | 1 1 1 4 . Engine 5 | 1 1 . 3 . Core 2 | . . 1 1 . Reactor . | . . . . . Propulsion 9 | 2 . . 6 1 Treads 3 | 1 . . 2 . Leg . | . . . . . Wheel 6 | 1 . . 4 1 Hover . | . . . . . Flight . | . . . . . Utility 11 | 1 3 . 6 1 Device 4 | . 1 . 3 . Storage 5 | 1 2 . 2 . Processor . | . . . . . Hackware . | . . . . . Protection 2 | . . . 1 1 Artifact . | . . . . . Weapon 27 | 3 8 . 14 2 Energy Gun 7 | 2 3 . 1 1 Energy Cannon 6 | . . . 6 . Ballistic Gun 10 | 1 4 . 4 1 Ballistic Cannon . | . . . . . Launcher 4 | . 1 . 3 . Special Weapon . | . . . . . Impact Weapon . | . . . . . Slashing Weapon . | . . . . . Piercing Weapon . | . . . . . Special Melee Weapon . | . . . . . Unidentified Prototypes 2 | . . . 2 . Parts Lost 13 | . 2 . 5 6 Power 4 | . 1 . 2 1 Propulsion 4 | . . . 1 3 Utility . | . . . . . Weapon 5 | . 1 . 2 2 Highest Loss Streak 4 | . 2 . 3 4 Average Slot Usage (%) 97 | . 96 100 98 77 Engine 7 | . 13 6 5 2 Core 4 | . . 7 5 . Treads 12 | . 14 14 11 11 Wheel 18 | . 14 14 21 11 Device 8 | . 9 . 9 8 Storage 21 | . 16 28 22 22 Energy Gun 2 | . 11 . . 4 Energy Cannon 6 | . . . 9 4 Ballistic Gun 14 | . 16 28 11 2 Naked Turns . | . . . . . Heaviest Build 49 | 10 39 41 49 47 Greatest Support 32 | 16 16 16 32 26 Greatest Overweight (x) 3 | . 2 2 2 3 Average Overweight (x) 1 | . . 2 1 1 Largest Inventory Capacity 16 | 6 16 16 16 16 Average Capacity 14 | 5 9 16 16 16 Most Carried 16 | 4 14 15 16 16 Average Carried 13 | 2 7 14 15 15 Final Capacity 16 | 6 16 16 16 16 Final Carried 16 | 4 14 15 16 15 Class Distribution -------------------- 96% | Mutant 3% | Scavenger-Mutant Dominant Class ---------------- Mutant | -10/Materials Mutant | -10/Mines Mutant | -9/Materials Mutant | -9/Mines Resources | -11 -10 -10 -9 -9 ----------- Run | Scr Mat Min Mat Min Matter Collected 1135 | 208 216 166 531 14 Remotely . | . . . . . Salvage Created 1778 | . 251 195 1281 51 Parts 106 | . 14 5 86 1 Haulers Intercepted 2 | . 1 . 1 . Recyclers Shooed 3 | . . 1 2 . Parts Field Recycled . | . . . . . Retrieved Matter . | . . . . . Parts Self-Destructed . | . . . . . Prevented . | . . . . . Kills | -11 -10 -10 -9 -9 ------- Run | Scr Mat Min Mat Min Combat Hostiles Destroyed 56 | . 7 4 28 17 Guns 16 | . 4 4 5 3 Cannons 13 | . . . 13 . AOE 27 | . 3 . 10 14 Classes Destroyed 13 | . 5 . 6 2 Worker 4 | . . . 3 1 Builder 1 | . . . 1 . Tunneler 1 | . 1 . . . Hauler 2 | . 1 . 1 . Recycler 2 | . . . 2 . Operator 2 | . 1 . 1 . Watcher 3 | . . . 3 . Swarmer 11 | . 3 . 8 . Grunt 22 | . 4 4 14 . Duelist 1 | . . . 1 . Sentry 5 | . . . 5 . Demolisher 1 | . . . . 1 Assembled 16 | . . . . 16 Best Kill Streak 18 | . 5 2 9 18 Combat Bots Only 17 | . 5 2 6 17 Max Kills in Single Turn 3 | . 3 1 3 3 Gunslinging . | . . . . . Exploded 3 | . 3 . 2 3 Melee . | . . . . . Uniques/NPCs Destroyed . | . . . . . Combat | -11 -10 -10 -9 -9 -------- Run | Scr Mat Min Mat Min Damage Taken 2485 | . 305 298 856 1026 Core 517 | . 97 17 158 245 Absorbed by Shields . | . . . . . Core Remaining (%) 77 | 100 . 54 . . Volleys Fired 157 | . 26 26 81 24 Largest 2 | . 2 2 2 2 Hottest 98 | . 70 40 98 79 Shots Fired 278 | . 47 52 153 26 Gun 183 | . 45 52 74 12 Cannon 73 | . . . 73 . Launcher 22 | . 2 . 6 14 Special . | . . . . . Kinetic 158 | . 24 52 74 8 Thermal 98 | . 21 . 73 4 Explosive 22 | . 2 . 6 14 Electromagnetic . | . . . . . Robot Hit Streak 16 | . 16 5 14 15 Robot Miss Streak 4 | . 1 2 4 1 Penetration Max . | . . . . . Secondary Targets . | . . . . . Shots Hit Robots 196 | . 36 35 104 21 Core Hits 114 | . 18 9 47 40 Critical Hits 15 | . . 1 14 . Critical Kills 6 | . . 1 5 . Critical Parts Destroyed 8 | . . . 8 . Melee Attacks . | . . . . . Impact . | . . . . . Slashing . | . . . . . Piercing . | . . . . . Sneak Attacks . | . . . . . Combat Hostiles . | . . . . . Follow-up Attacks . | . . . . . Damage Inflicted 5049 | . 521 388 2783 1357 Guns 1505 | . 363 388 600 154 Cannons 1269 | . . . 1269 . Explosions 2275 | . 158 . 914 1203 Melee . | . . . . . Ramming . | . . . . . Kinetic 1243 | . 144 388 600 111 Thermal 1744 | . 219 . 1482 43 Explosive 2062 | . 158 . 701 1203 Electromagnetic . | . . . . . Impact . | . . . . . Slashing . | . . . . . Piercing . | . . . . . Highest Corruption . | . . . . . Average Corruption . | . . . . . Corruption Purged . | . . . . . Overload Shots . | . . . . . Overflow Damage 169 | . . . 60 109 Projectiles 10 | . . . 10 . Explosions 159 | . . . 50 109 Melee . | . . . . . Knockbacks . | . . . . . Impact . | . . . . . Kinetic . | . . . . . Secondary . | . . . . . Self-Inflicted Damage 214 | . . . 13 201 Shots 6 | . . . 1 5 Rammed . | . . . . . Targets Rammed . | . . . . . Kicked . | . . . . . Crushed . | . . . . . Highest Temperature 192 | . 192 2 3 18 Average Temperature 35 | . 64 1 2 9 Received Heat Transfer 588 | . 162 168 258 . Siege Activations . | . . . . . Robots Corrupted . | . . . . . Combat Hostiles . | . . . . . Parts Fried . | . . . . . Impact Corruptions . | . . . . . Robots Melted . | . . . . . Combat Hostiles . | . . . . . Parts Melted 2 | . 1 . 1 . Heat Transferred 3123 | . 618 . 2394 111 Parts Sabotaged . | . . . . . Parts Stolen . | . . . . . Parts Stripped . | . . . . . Power Chain Reactions . | . . . . . Missiles Intercepted . | . . . . . Alert | -11 -10 -10 -9 -9 ------- Run | Scr Mat Min Mat Min Peak Influence 565 | . 175 117 565 145 Average Influence 171 | . 110 61 228 124 Maximum Alert Level 2 | . . . 2 . Low Security (%) 62 | 100 100 100 37 100 Level 1 31 | . . . 52 . Level 2 6 | . . . 10 . Level 3 . | . . . . . Level 4 . | . . . . . Level 5 . | . . . . . High Security . | . . . . . Max Security . | . . . . . Squads Dispatched 1 | . 1 . . . Investigation . | . . . . . Extermination . | . . . . . Reinforcement 1 | . 1 . . . Assault . | . . . . . Garrison . | . . . . . Intercept . | . . . . . Construction Impeded . | . . . . . Haulers Reinforced . | . . . . . Stealth | -11 -10 -10 -9 -9 --------- Run | Scr Mat Min Mat Min Distress Signals 1 | . . . 1 . Communications Jammed . | . . . . . Distress Signals . | . . . . . Times Spotted 76 | . 12 5 41 18 Peak Tracking Total 8 | . 5 2 4 8 Tactical Retreats 2 | . . 1 . 1 Traps | -11 -10 -10 -9 -9 ------- Run | Scr Mat Min Mat Min Traps Triggered . | . . . . . Indirectly . | . . . . . Trap Hack Attempts . | . . . . . Triggered . | . . . . . Disarmed . | . . . . . Reprogrammed . | . . . . . Reused . | . . . . . Traps Extracted . | . . . . . Installed . | . . . . . Triggered . | . . . . . Machines | -11 -10 -10 -9 -9 ---------- Run | Scr Mat Min Mat Min Machines Disabled 4 | . . . 4 . Max in Single Turn 2 | . . . 2 . Machines Sabotaged . | . . . . . Garrisons Compromised . | . . . . . Overloaded Fab Kills . | . . . . . Fab Network Shutdowns . | . . . . . Hacking | -11 -10 -10 -9 -9 --------- Run | Scr Mat Min Mat Min Machines Accessed 14 | . 4 . 10 . Terminals 14 | . 4 . 10 . Fabricators . | . . . . . Repair Stations . | . . . . . Recycling Units . | . . . . . Scanalyzers . | . . . . . Garrison Access . | . . . . . Total Hacks 45 | . 15 . 30 . Successful 19 | . 8 . 11 . Failed 26 | . 7 . 19 . Catastrophic 5 | . 1 . 4 . Database Lockouts . | . . . . . Manual 32 | . 8 . 24 . Terminals 45 | . 15 . 30 . Fabricators . | . . . . . Repair Stations . | . . . . . Recycling Units . | . . . . . Scanalyzers . | . . . . . Garrison Access . | . . . . . Terminal Hacks 10 | . 4 . 6 . Part Schematic 1 | . . . 1 . Prototype ID Bank 1 | . 1 . . . Emergency Access Points 1 | . . . 1 . Unreport Threat 3 | . 1 . 2 . Locate Traps 1 | . . . 1 . Registered Components 1 | . 1 . . . Zone Layout 2 | . 1 . 1 . Fabricator Hacks . | . . . . . Repair Station Hacks . | . . . . . Recycling Unit Hacks . | . . . . . Scanalyzer . | . . . . . Garrison Access Hacks . | . . . . . Unauthorized Hacks 25 | . 10 . 15 . Terminals 9 | . 4 . 5 . Botnet 9 | . 4 . 5 . Fabricators . | . . . . . Repair Stations . | . . . . . Recycling Units . | . . . . . Scanalyzers . | . . . . . Garrison Access . | . . . . . Data Cores Recovered 1 | . . . 1 . Used . | . . . . . Hacking Detections 14 | . 4 . 10 . Full Trace Events . | . . . . . Feedback Events . | . . . . . Feedback Blocked . | . . . . . Robot Schematics Acquired . | . . . . . Robots Built . | . . . . . Matter . | . . . . . Time . | . . . . . Total Robot Build Rating . | . . . . . Part Schematics Acquired 1 | . . . 1 . Parts Built . | . . . . . Matter . | . . . . . Time . | . . . . . Total Part Build Rating . | . . . . . Parts Repaired . | . . . . . Time . | . . . . . Parts Recycled . | . . . . . Recycled Matter . | . . . . . Retrieved Matter . | . . . . . Retrieved Components . | . . . . . Parts Scanalyzed . | . . . . . Part Schematics Acquired . | . . . . . Parts Damaged . | . . . . . Bothacking | -11 -10 -10 -9 -9 ------------ Run | Scr Mat Min Mat Min Used RIF Installer . | . . . . . Robots Hacked . | . . . . . Non-combat . | . . . . . Combat . | . . . . . Robot Hacks Applied . | . . . . . Relay Couplers Released . | . . . . . Robots Rewired . | . . . . . Allies Hacked . | . . . . . Hacks Repelled . | . . . . . Allies | -11 -10 -10 -9 -9 -------- Run | Scr Mat Min Mat Min Total Allies 2 | . . 2 . . Largest Group 2 | . . 2 2 . Highest-Rated Group 47 | . . 47 47 . Highest-Rated Ally 31 | . . 31 31 . Total Orders . | . . . . . Ally Attacks 24 | . . 3 21 . Total Damage 339 | . . 44 295 . Kills 7 | . . . 7 . Allies Corrupted . | . . . . . Allies Melted . | . . . . . Intel | -11 -10 -10 -9 -9 ------- Run | Scr Mat Min Mat Min Robot Analysis Total . | . . . . . Derelict Logs Recovered 1 | . . 1 . . Drone Launches . | . . . . . Drone Recoveries . | . . . . . Exploration | -11 -10 -10 -9 -9 ------------- Run | Scr Mat Min Mat Min Turns Passed 2095 | 42 403 314 1250 86 Spaces Moved 1277 | 29 244 172 804 28 Core 1 | 1 . . . . Treads 10 | . . . 7 3 Legs . | . . . . . Wheels 1266 | 28 244 172 797 25 Hover . | . . . . . Flight . | . . . . . Fastest Speed 50 | 50 100 120 100 100 Average Speed 109 | 98 108 120 107 110 Slowest Speed 200 | 100 120 120 200 190 Overloaded Moves . | . . . . . Propulsion Burnouts . | . . . . . Robots Hopped . | . . . . . Cave-ins Triggered . | . . . . . Exploration Rate (%) 36 | 2 41 43 85 11 Regions Visited 4 Branch Regions 2 Pre-discovered Areas 1 | . . 1 . . Known Exits Taken . | . . . . . Unknown Exits Taken 4 | 1 1 1 1 . Scrap Searched . | . . . . . Spaces Dug 7 | . . . . 7 Terrain Destroyed 183 | . 17 . 60 106 Melee . | . . . . . Projectile 1 | . . . 1 . AOE 182 | . 17 . 59 106 Actions | -11 -10 -10 -9 -9 --------- Run | Scr Mat Min Mat Min Total 1710 | 39 339 227 1049 56 Wait 144 | . 37 27 80 . Move 1273 | 28 243 171 803 28 Hop . | . . . . . Pick Up 41 | 3 14 1 23 . Fast Attach 19 | 7 3 1 7 1 Attach 8 | . 1 . 6 1 Detach 1 | 1 . . . . Swap 27 | . 8 . 17 2 Drop 40 | . 7 1 32 . Fire 157 | . 26 26 81 24 Melee . | . . . . . Ram . | . . . . . Kick . | . . . . . Crush . | . . . . . Escape Stasis . | . . . . . Rewire . | . . . . . Trap . | . . . . . Miscellaneous . | . . . . . Route ------- -11/Scrapyard -10/Materials (discovered 3 exits: *Mat / [*Min x2]) -10/Mines -9/Materials (discovered 4 exits: [*Mat x3] / [*Min]) -9/Mines History --------- Turn | Location | Event 18 | -11/Scrapyard | Discovered new exit (range 15) 43 | -11/Scrapyard | Entered Materials 168 | -10/Materials | Discovered new exit (range 14) 298 | -10/Materials | Discovered new exit (range 11) 305 | -10/Materials | Build established: Mutant 397 | -10/Materials | Discovered new exit (range 9) 446 | -10/Materials | Entered Mines 462 | -10/Mines | Learned location of Storage (-8) 728 | -10/Mines | Discovered new exit (range 11) 760 | -10/Mines | Entered Materials 760 | -9/Materials | Accompanied by 2 allies 760 | -9/Materials | Evolved 2 slots: Propulsion x1, Utility x1 765 | -9/Materials | Led the pair of lost Derelicts to an unsafe place 1062 | -9/Materials | Discovered new exit (range 5) 1388 | -9/Materials | Discovered new exit (range 13) 1582 | -9/Materials | Lost 3 parts (1p1n1w) 1723 | -9/Materials | Discovered new exit (range 16) 2000 | -9/Materials | Discovered new exit (range 9) 2010 | -9/Materials | Entered Mines 2017 | -9/Mines | Assembled infested the area 2033 | -9/Mines | Core integrity fell below 50% 2078 | -9/Mines | Lost 4 parts (1p2n1w) 2089 | -9/Mines | Core integrity fell below 20% 2096 | -9/Mines | Destroyed by D-53 Grenadier with Mini Grenade Launcher Last Messages --------------- 02057_ as-26660 destroyed. 02058_ The unstable cave ceiling collapses. 02065_ Acquired Wheel. 02066_ The unstable cave ceiling collapses. 02067_ Acquired 14 matter. 02070_ The unstable cave ceiling collapses. 02072_ Destroyed Asb. Maul. 02072_ Destroyed Asb. Hover Unit. 02073_ The unstable cave ceiling collapses. 02074_ as-49636 destroyed. 02076_ C-30 ARC bursts open, deploying its payload. 02076_ D-53 Grenadier unfolds itself. 02076_ Laser Drill disabled. 02079_ The unstable cave ceiling collapses. 02083_ Beam Rifle destroyed. 02085_ The unstable cave ceiling collapses. 02093_ D-53 Grenadier destroyed. 02094_ The unstable cave ceiling collapses. 02094_ Arm. Treads destroyed. 02095_ The unstable cave ceiling collapses. Map ----- +----------------------------------------------------+ | | | | | | | | | | | | | | | | | | | | | | | | | | | | | | | | | ??????????????????????????????????????????????? | | ??????????????????????????????????????????????? | | ??????????????????????????????????????????????? | | ???????????#############??????????????????????? | | ???????????# ###??????######????????? | | ???????????# """ " ##?????# ###??????? | | ???????????# """ ##????# ##?????? | | ???????????# " # #???## #?????? | | ???????????# ##### ##????? | | ???????????# @ # #????? | | ???????????# # ## ## #???? | | ???????????###### %####### #??? | | ????????????????# d #??????# #??? | | ????????????????## ###???????# ##??? | | ????????????????# #??????????# #???? | | ????????????????# # ##???????????# #???? | | ???????????????? # #????????????? #???? | | ??????????????? # ## #?????????????? #???? | | ?????????????? # ???????????????#???? | | ?????????????## #??????????????????? | | ??????????????# # ###??????????????????? | | ??????????????# #????????????????????? | | ??????????????# ????????????????????? | | ??????????????# ????????????????????? | | ??????????????? ## ##????????????????????? | | ?????????????????? ##??#??????????????????????? | | ??????????????????????????????????????????????? | | ??????????????????????????????????????????????? | | ??????????????????????????????????????????????? | | ??????????????????????????????????????????????? | | ??????????????????????????????????????????????? | | ??????????????????????????????????????????????? | | ??????????????????????????????????????????????? | | ??????????????????????????????????????????????? | +----------------------------------------------------+ Best States ------------- Heat Dissipation 42 Energy Generation 14 Energy Capacity 275 Matter Stores 300 Matter Capacity 300 Sight Range 16 Terrain Scan Density 10 Armor Coverage 150 Evasion (%) 40 Recoil Reduction 1 Item Schematics ----------------- Hcp. Storage Unit | -9/Materials | Hacked Robot Schematics ------------------ None Fabricated ------------ Nothing Alien Tech Used ----------------- None Achievements -------------- None Challenges ------------ None Game ------ Seed ProcessingKineticWand Manual? 0 Play Time 00:16:27 Cumulative 629.7 hours Start 2020.01.09 @ 21:20:13 End 2020.01.10 @ 00:05:25 Sessions 2 Manual Loads 0 Difficulty Rogue Special Mode None Game No. 558 Rogue 518 Adventurer 40 Explorer 0 Win Type - Total 42 Types 28/0/12/2/0/0/0 Lore% 88 Gallery% 90 Achievement% 69 Wizard Run 0 Options --------- ASCII 0 Keyboard 0 Movement Numpad Keybinds 0 Fullscreen 0 Font 16/Terminus Map View 76x50 Tactical HUD 1 Map Filters NONE Filters NONE Steam 1 RUN: a99824e1-0362-48ca-9cac-634c52e6c4ff